[Event "Hungarian Youth-ch U16 2022"]
[Site "Eger"]
[Date "2022.07.23"]
[Round "1.5"]
[White "Kovacs, Veronika"]
[Black "Bodo, Boglarka"]
[Result "1-0"]
[ECO "A15"]
[WhiteElo "1633"]
[BlackElo "1722"]
[Annotator "NA RC COMBH"]
[PlyCount "45"]
[EventDate "2022.07.21"]
[EventType "tourn"]
[EventCountry "HUN"]
[SourceTitle "playchess.com"]
[Source "ChessBase"]
[SourceQuality "1"]
[TimeControl "40/5400+30:1800+30"]

1. c4 {[%emt 0:00:33]} Nf6 {[%emt 0:00:40]} 2. Nf3 {[%emt 0:00:03]} b6 {[%emt 0:00:15]} 3. g3 {[%emt 0:00:05]} Bb7 {[%emt 0:00:05]} 4. Bg2 {[%emt 0:00:08]} g6 {[%emt 0:00:32]} 5. O-O {[%emt 0:00:06]} Bg7 {[%emt 0:00:08]} 6. d4 {[%emt 0:00:33]} O-O {[%emt 0:00:34]} 7. Nc3 {[%emt 0:00:20]} Ne4 {[%emt 0:01:03]} 8. Qc2 {[%emt 0:00:32]} Nxc3 {[%emt 0:00:35]} 9. bxc3 {[%emt 0:00:28]} f5 {[%emt 0:00:28]} 10. d5 {[%emt 0:06:34]} e6 {[%emt 0:06:35]} 11. Rd1 {[%emt 0:08:03]} Qf6 {[%emt 0:03:24]} 12. Bf4 {[%emt 0:10:20]} exd5 {[%emt 0:06:15]} 13. Be5 {[%emt 0:09:15]} Qe7 {[%emt 0:07:01]} 14. Bxg7 {[%emt 0:00:47]} Kxg7 {[%emt 0:01:33]} 15. cxd5 {[%emt 0:01:16]} Re8 {[%emt 0:01:34]} 16. Nd4 {[%emt 0:02:43]} Qc5 {[%emt 0:04:42]} 17. c4 {[%emt 0:05:16]} Kg8 {[%emt 0:03:31]} 18. Qb2 {[%emt 0:19:16]} Qxc4 {[%emt 0:05:20]} 19. Rdc1 {[%emt 0:02:50]} Qa4 {[%emt 0:08:40]} 20. Rxc7 {[%emt 0:01:52]} Ba6 {[%emt 0:04:24]} 21. d6 {[%emt 0:03:27]} Nc6 {[%emt 0:01:47]} 22. Bd5+ {[%emt 0:01:26]} Kf8 {[%emt 0:00:31]} 23. Nxc6 {[%emt 0:02:46]} 1-0

[Event "Hungarian Youth-ch U16 2022"]
[Site "Eger"]
[Date "2022.07.23"]
[Round "1.6"]
[White "Karacsonyi, Kata"]
[Black "Harkai, Emma"]
[Result "1-0"]
[ECO "C78"]
[WhiteElo "2147"]
[BlackElo "1761"]
[Annotator "TA"]
[PlyCount "53"]
[EventDate "2022.07.21"]
[EventType "tourn"]
[EventCountry "HUN"]
[SourceTitle "playchess.com"]
[Source "ChessBase"]
[SourceQuality "1"]
[TimeControl "40/5400+30:1800+30"]

{[%evp 24,52,50,0,0,0,114,66,90,82,89,79,85,57,72,72,85,60,79,68,77,81,80,77,68,82,406,420,1881,1828,29999]} 1. e4 {[%emt 0:00:33]} e5 {[%emt 0:00:39]} 2. Nf3 {[%emt 0:00:08]} Nc6 {[%emt 0:00:09]} 3. Bb5 {[%emt 0:00:11][%cal Bf1b5,Bb5a4,Ba4b3][%mdl 32]} a6 {[%emt 0:00:14]} 4. Ba4 {[%emt 0:00:33]} Nf6 {[%emt 0:00:30]} 5. O-O {[%emt 0:00:11]} b5 {[%emt 0:00:43]} 6. Bb3 {[%emt 0:00:08]} Be7 {[%emt 0:00:21]} 7. d3 {[%emt 0:00:20]} O-O {[%emt 0:00:33]} 8. a4 {[%emt 0:02:00]} Bb7 {[%emt 0:02:51]} 9. c3 {[%emt 0:03:06]} d6 {[%emt 0:04:23]} 10. Nbd2 {[%emt 0:01:17]} h6 {[%emt 0:12:02]} 11. Re1 {[%emt 0:02:49]} Re8 {[%emt 0:01:25]} 12. Nf1 {[%emt 0:02:34]} Bf8 {[%emt 0:05:39]} 13. Ng3 {[%emt 0:11:23]} (13. Bd2 $14) 13... Na5 $11 {[%emt 0:06:36] C88: Closed Ruy Lopez: Anti-Marshall Systems.} 14. Bc2 {[%emt 0:05:28]} g6 {[%emt 0:07:46] [#]} (14... c5 $11) 15. h4 $146 {[%emt 0:19:15]} ({White should play} 15. b4 $1 $16 {[%cal Rb4a5]} Nc6 16. Be3) ({Predecessor:} 15. d4 Nc6 16. d5 Ne7 17. Qd3 bxa4 18. Bxa4 Nd7 19. b4 Bg7 20. c4 Rf8 21. Bb2 {1-0 (45) Vehi Bach,V (2420)-Munoz,M San Sebastian 1994}) 15... h5 {[%emt 0:09:11] White is slightly better.} 16. b4 {[%emt 0:11:19]} Nc6 {[%emt 0:01:44]} 17. Bb3 {[%emt 0:03:38]} Bg7 {[%emt 0:03:20]} 18. Qc2 {[%emt 0:05:58]} Qe7 {[%emt 0:09:01]} 19. Ng5 $36 {[%emt 0:02:21][%mdl 2048] Keeping Black busy.} Rf8 {[%emt 0:06:41]} 20. Nf1 {[%emt 0:08:00][%cal Bg3f1,Bf1h2,Bh2f3][%mdl 32]} Rab8 {[%emt 0:10:00]} 21. Nh2 {[%emt 0:01:46]} Nd8 {[%emt 0:05:11]} 22. d4 {[%emt 0:03:06] White is more active.} exd4 {[%emt 0:05:05]} 23. cxd4 {[%emt 0:00:45]} Nc6 {[%emt 0:01:08]} 24. Nhf3 {[%emt 0:05:19] [#] Black must now prevent e5.} Ng4 {[%emt 0:03:47][%mdl 8192] Inhibits e5.} (24... Nxb4 $16 25. Qd2 c5) 25. e5 $1 $18 {[%emt 0:01:11] aiming for Qxg6.} dxe5 {[%emt 0:01:02]} (25... d5 $142 26. Bxd5 Ncxe5 27. Bxb7 (27. Nxe5 Bxd5 28. axb5 Rxb5 $15) (27. Rxe5 Nxe5 28. Bxb7 Nxf3+ 29. Bxf3 Qe1+ 30. Kh2 Qxb4 $14) (27. dxe5 Bxd5 28. axb5 axb5 $11) 27... Nxf3+ 28. Nxf3 Qd6) 26. Qxg6 {[%emt 0:01:00][%csl Gg5][%cal Rg6h7]} Nxb4 {[%emt 0:01:41]} 27. Qh7# {[%emt 0:00:09] White took control after the opening.  Weighted Error Value: White=0.12 (very precise) /Black=0.91} 1-0

[Event "Hungarian Youth-ch U16 2022"]
[Site "Eger"]
[Date "2022.07.23"]
[Round "1.7"]
[White "Buri, Petra Zsuzsanna"]
[Black "Sipos, Stefania"]
[Result "1-0"]
[ECO "B00"]
[WhiteElo "1784"]
[BlackElo "1802"]
[Annotator "NA RC COMBH"]
[PlyCount "77"]
[EventDate "2022.07.21"]
[EventType "tourn"]
[EventCountry "HUN"]
[SourceTitle "playchess.com"]
[Source "ChessBase"]
[SourceQuality "1"]
[TimeControl "40/5400+30:1800+30"]

1. e4 {[%emt 0:00:34]} d6 {[%emt 0:00:38]} 2. d4 {[%emt 0:00:10]} Nf6 {[%emt 0:00:05]} 3. Bd3 {[%emt 0:00:47]} Nbd7 {[%emt 0:00:19]} 4. Nf3 {[%emt 0:00:44]} e5 {[%emt 0:00:16]} 5. c3 {[%emt 0:02:30]} Be7 {[%emt 0:00:45]} 6. O-O {[%emt 0:01:42]} h6 {[%emt 0:02:36]} 7. Qb3 {[%emt 0:09:54]} c6 {[%emt 0:06:24]} 8. Rd1 {[%emt 0:05:33]} Qc7 {[%emt 0:02:23]} 9. Nbd2 {[%emt 0:05:46]} Nf8 {[%emt 0:21:59]} 10. Bc4 {[%emt 0:07:22]} Be6 {[%emt 0:04:49]} 11. d5 {[%emt 0:21:05]} cxd5 {[%emt 0:01:21]} 12. exd5 {[%emt 0:03:20]} Bd7 {[%emt 0:02:09]} 13. Bd3 {[%emt 0:01:57]} Qa5 {[%emt 0:15:02]} 14. Qxb7 {[%emt 0:07:07]} Qxd5 {[%emt 0:00:25]} 15. Qxd5 {[%emt 0:00:26]} Nxd5 {[%emt 0:00:07]} 16. Be4 {[%emt 0:00:12]} Bc6 {[%emt 0:03:10]} 17. Nc4 {[%emt 0:05:24]} Nb4 {[%emt 0:01:56]} 18. Bxc6+ {[%emt 0:00:59]} Nxc6 {[%emt 0:00:04]} 19. Nxd6+ {[%emt 0:00:14]} Bxd6 {[%emt 0:00:35]} 20. Rxd6 {[%emt 0:00:08]} Rc8 {[%emt 0:01:39]} 21. Be3 {[%emt 0:02:56]} f6 {[%emt 0:02:56]} 22. b4 {[%emt 0:03:32]} Rc7 {[%emt 0:08:01]} 23. Rad1 {[%emt 0:03:17]} Nd7 {[%emt 0:02:47]} 24. a4 {[%emt 0:03:23]} Ke7 {[%emt 0:06:11]} 25. Nh4 {[%emt 0:02:32]} Rd8 {[%emt 0:03:14]} 26. Nf5+ {[%emt 0:00:30]} Kf7 {[%emt 0:00:55]} 27. b5 {[%emt 0:01:48]} Ne7 {[%emt 0:03:47]} 28. Nxe7 {[%emt 0:00:26]} Kxe7 {[%emt 0:00:07]} 29. a5 {[%emt 0:04:54]} Rb8 {[%emt 0:03:04]} 30. c4 {[%emt 0:01:23]} Rbb7 {[%emt 0:02:40]} 31. Bxa7 {[%emt 0:01:14]} Rxc4 {[%emt 0:02:11]} 32. Be3 {[%emt 0:01:13]} Nc5 {[%emt 0:02:52]} 33. b6 {[%emt 0:01:42]} Ne4 {[%emt 0:00:27]} 34. R6d3 {[%emt 0:01:57]} Ra4 {[%emt 0:00:19]} 35. f3 {[%emt 0:00:14]} Ng5 {[%emt 0:00:42]} 36. Bc5+ {[%emt 0:00:11]} Ke6 {[%emt 0:00:58]} 37. Ra3 {[%emt 0:00:09]} Rc4 {[%emt 0:00:09]} 38. a6 {[%emt 0:00:18]} Rb8 {[%emt 0:00:57]} 39. a7 {[%emt 0:00:15]} 1-0

[Event "Hungarian Youth-ch U16 2022"]
[Site "Eger"]
[Date "2022.07.24"]
[Round "2.1"]
[White "Borzsei, Andras"]
[Black "Kocsmar, Akos"]
[Result "0-1"]
[ECO "E36"]
[WhiteElo "2002"]
[BlackElo "2061"]
[Annotator "TA"]
[PlyCount "146"]
[EventDate "2022.07.21"]
[EventType "tourn"]
[EventCountry "HUN"]
[SourceTitle "playchess.com"]
[Source "ChessBase"]
[SourceQuality "1"]
[TimeControl "40/5400+30:1800+30"]

{[%evp 15,146,7,15,-34,-20,-29,-26,-49,-48,-42,0,0,0,-16,-18,-31,-14,-48,12,12,12,11,13,12,15,10,10,18,36,32,39,16,28,21,59,58,92,85,74,41,35,27,25,24,26,19,20,19,112,118,135,75,72,49,43,53,112,119,181,106,109,26,25,18,62,31,19,19,21,8,13,7,73,21,39,27,8,0,0,0,0,0,0,0,0,0,0,0,18,18,84,0,166,159,154,72,81,0,0,0,0,0,147,170,136,129,172,154,156,0,0,0,0,0,19,0,0,0,0,-29981,-29981,-29984,-29982,-29982,-29983,-29983,-29984,-29988,-29989,-29989,-29990,-29998,-29999]} 1. d4 {[%emt 0:00:36]} Nf6 {[%emt 0:00:34]} 2. c4 {[%emt 0:00:09]} e6 {[%emt 0:00:06]} 3. Nc3 {[%emt 0:00:24]} Bb4 {[%emt 0:00:09]} 4. Qc2 {[%emt 0:00:19]} d5 {[%emt 0:00:05]} 5. a3 {[%emt 0:00:17]} Bxc3+ {[%emt 0:00:11]} 6. Qxc3 {[%emt 0:00:12]} O-O {[%emt 0:00:34]} 7. Nf3 {[%emt 0:06:58]} dxc4 {[%emt 0:01:26]} 8. Qxc4 {[%emt 0:03:42]} b6 {[%emt 0:00:13]} 9. e3 {[%emt 0:08:05] E36: Nimzo-Indian: Classical: 4...d5 5 a3.} (9. Bg5 $11) 9... Ba6 $15 {[%emt 0:02:34]} 10. Qc2 {[%emt 0:02:51]} Bxf1 {[%emt 0:00:07]} 11. Kxf1 {[%emt 0:00:41] Black has an edge.} Nbd7 {[%emt 0:03:46] [#]} 12. Qc6 $146 {[%emt 0:09:36]} ({Predecessor:} 12. Bd2 c5 13. Bc3 Rc8 14. Qe2 Ne4 15. Rc1 cxd4 16. exd4 Ndf6 17. g3 Qd5 18. Kg2 {0-1 (59) Fernandez,G (2318)-Leiva Rodriguez,J (2390) Chess.com INT 2016}) 12... Nd5 {[%emt 0:04:51]} 13. Bd2 {[%emt 0:04:14][%cal Bc1d2,Bd2c3,Bc3d4][%mdl 32]} Ne7 {[%emt 0:01:44]} 14. Qa4 {[%emt 0:06:24]} c5 {[%emt 0:03:56]} 15. Bc3 {[%emt 0:04:09]} Qc8 {[%emt 0:18:27]} 16. h4 {[%emt 0:13:57]} Qc6 {[%emt 0:03:06]} (16... Nd5 $15) 17. Qxc6 $11 {[%emt 0:04:25]} Nxc6 {[%emt 0:00:27]} 18. Ke2 {[%emt 0:00:58]} cxd4 {[%emt 0:01:50]} 19. Nxd4 {[%emt 0:01:50]} Nxd4+ {[%emt 0:03:38]} 20. Bxd4 {[%emt 0:00:10]} Rfc8 {[%emt 0:02:21]} 21. Rac1 {[%emt 0:05:23]} Kf8 {[%emt 0:03:10]} 22. Bc3 {[%emt 0:00:50]} f6 {[%emt 0:03:14]} 23. Rc2 {[%emt 0:03:23]} Ke8 {[%emt 0:00:53]} 24. Rhc1 {[%emt 0:02:06]} Nb8 {[%emt 0:12:18]} 25. g4 {[%emt 0:05:00][%cal Bg2g4,Bg4g5][%mdl 32]} Na6 {[%emt 0:02:31]} 26. g5 {[%emt 0:02:05]} Kf7 {[%emt 0:00:45]} 27. Rd2 {[%emt 0:00:57]} Rd8 {[%emt 0:05:07] Inhibits Rd7+.} 28. Rcd1 {[%emt 0:01:15]} Rxd2+ {[%emt 0:02:43]} 29. Rxd2 {[%emt 0:00:06][%mdl 4096] Endgame KRB-KRN} Ke7 {[%emt 0:00:25] Against Rd7+} 30. Kf3 {[%emt 0:05:18]} Rc8 {[%emt 0:00:55]} 31. Kg4 {[%emt 0:01:04]} Rc5 {[%emt 0:09:21]} (31... Rc4+ $11 32. Rd4 Rxd4+ 33. Bxd4 Kf7) 32. Rd4 $1 $16 {[%emt 0:01:46]} f5+ {[%emt 0:04:24]} 33. Kg3 {[%emt 0:02:08]} (33. Kh5 $142) 33... Rc7 {[%emt 0:00:32]} 34. h5 {[%emt 0:01:25]} Nc5 $1 {[%emt 0:01:23]} 35. f3 {[%emt 0:00:29] Prevents Ne4+.} a5 {[%emt 0:01:21]} (35... Nd7 $14) 36. Rd2 $1 {[%emt 0:01:46]} Kf7 {[%emt 0:03:09]} (36... g6 $16) 37. Rd6 {[%emt 0:01:35]} (37. Rd8 $1 $18 {[%cal Rd8h8]}) 37... Nd7 {[%emt 0:00:29] [#]} 38. Kf2 {[%emt 0:00:56]} (38. b4 $1 $16) 38... Ke7 $11 {[%emt 0:01:22]} 39. Rd1 {[%emt 0:00:16]} Kf7 {[%emt 0:01:12]} 40. Kg3 {[%emt 0:00:00]} e5 {[%emt 0:00:00]} 41. f4 {[%emt 0:08:28]} Ke6 {[%emt 0:03:53]} 42. Kf3 {[%emt 0:08:52]} Rc5 {[%emt 0:09:32]} 43. Rd2 {[%emt 0:01:33]} Rc7 {[%emt 0:01:51]} (43... g6) (43... Rd5 $11) 44. Ke2 {[%emt 0:01:21]} (44. Bxe5 $16 Nxe5+ 45. fxe5) 44... g6 {[%emt 0:02:06]} 45. hxg6 {[%emt 0:01:56]} hxg6 {[%emt 0:01:02]} 46. Kf3 {[%emt 0:00:17]} e4+ {[%emt 0:01:39]} 47. Kg3 {[%emt 0:00:14]} Rc6 {[%emt 0:00:38]} 48. Rh2 {[%emt 0:01:10]} Kd5 {[%emt 0:00:46]} 49. Rh7 {[%emt 0:01:37]} Rd6 {[%emt 0:00:17]} 50. Kf2 {[%emt 0:01:23]} Kc4 {[%emt 0:00:49]} 51. Ke2 {[%emt 0:00:11]} Kd5 {[%emt 0:02:55]} 52. Rg7 {[%emt 0:02:06]} Kc6 {[%emt 0:00:52]} (52... a4 $11 {remains equal.}) 53. Bd4 {[%emt 0:01:18]} ({White should try} 53. b3 $16) 53... b5 $2 {[%emt 0:01:58]} (53... Kb5 $11 {and Black has nothing to worry.}) 54. Bc3 $1 $18 {[%emt 0:00:21]} a4 {[%emt 0:04:06] [#]} 55. Bb4 {[%emt 0:00:57]} ({Better is} 55. Re7 $1) 55... Re6 $16 {[%emt 0:02:11]} 56. Kd2 {[%emt 0:00:41]} (56. Ba5 $16) 56... Nb6 $11 {[%emt 0:00:07]} 57. Bc3 {[%emt 0:01:26]} Nd5 {[%emt 0:02:20] Inhibits Bf6.} 58. Bd4 {[%emt 0:01:01]} b4 {[%emt 0:00:32]} (58... Rd6 $1 $11) 59. axb4 $16 {[%emt 0:01:46] aiming for Ra7.} Kb5 {[%emt 0:00:33]} 60. Rb7+ {[%emt 0:01:23]} Kc4 {[%emt 0:00:10]} 61. b5 {[%emt 0:01:04]} Rd6 {[%emt 0:01:45][%cal Od5f4] [#]} 62. b6 $2 {[%emt 0:02:25]} (62. Kc2 $1 $16) 62... Kb5 $11 {[%emt 0:00:06]} 63. Rf7 {[%emt 0:00:42] Hoping for b7.} Nxb6 {[%emt 0:00:34]} 64. Rf6 {[%emt 0:00:27]} Nc4+ {[%emt 0:01:17]} 65. Ke2 {[%emt 0:01:18]} Kb4 {[%emt 0:01:49]} 66. Bc3+ {[%emt 0:01:01]} Kb3 {[%emt 0:00:11] ...a3 is the strong threat.} 67. Rxd6 $4 {[%emt 0:00:42][%mdl 8192]} (67. Bd4 $11) 67... Nxd6 {[%emt 0:00:01] KB-KN. Black mates.} 68. Kd1 {[%emt 0:00:26]} Nc4 {[%emt 0:00:05][%csl LRb2,LRe3]} 69. Bd4 Nxb2+ {[%emt 0:00:06]} 70. Kc1 {[%emt 0:00:28]} a3 {[%emt 0:00:32][%cal Ba4a3,Ba3a2][%mdl 32]} 71. Kb1 {[%emt 0:00:12]} a2+ {[%emt 0:00:23]} 72. Ka1 {[%emt 0:00:20]} Nd3 {[%emt 0:00:56]} 73. Bc5 {[%emt 0:00:51]} Ne1 {[%emt 0:00:08] Never resign too early!  Weighted Error Value: White=0.16 (very precise) /Black=0.27 (precise)} 0-1

[Event "Hungarian Youth-ch U16 2022"]
[Site "Eger"]
[Date "2022.07.24"]
[Round "2.2"]
[White "Onodi, Tamas"]
[Black "Tran, David"]
[Result "1-0"]
[ECO "A46"]
[WhiteElo "2030"]
[BlackElo "2090"]
[Annotator "TA"]
[PlyCount "167"]
[EventDate "2022.07.21"]
[EventType "tourn"]
[EventCountry "HUN"]
[SourceTitle "playchess.com"]
[Source "ChessBase"]
[SourceQuality "1"]
[TimeControl "40/5400+30:1800+30"]

{[%evp 16,167,21,4,7,3,19,0,4,0,8,-10,0,-8,-9,-19,-8,-6,-5,-78,-76,-44,-63,-91,-116,-110,-113,-110,-101,-93,-29,-64,-47,-45,78,79,92,85,93,94,90,83,83,83,74,109,108,101,116,121,122,110,164,158,153,108,161,66,64,60,89,83,127,127,132,58,60,58,441,431,414,370,503,468,660,533,565,151,150,150,150,150,150,150,150,150,82,8,8,6,6,8,29961,29964,29963,29965,29962,29964,29965,29961,29967,29967,29972,29976,29976,29972,29977,29969,29970,29971,29971,29973,29973,29974,29980,29981,29981,29979,29979,29973,29973,29973,29974,29973,29973,29974,29974,29975,29975,29967,29974,29976,29977,29969,29970,12817,29979,29975,29984,29985,29985,29986,29986,29986,29991,29992,29993,29994,29994,29985,29995,29991,29996,29997]} 1. d4 {[%emt 0:00:40]} Nf6 {[%emt 0:00:35]} 2. Nf3 {[%emt 0:00:07]} d5 {[%emt 0:00:55]} 3. g3 {[%emt 0:00:09]} c6 {[%emt 0:00:36]} 4. Bg2 {[%emt 0:00:23]} Bf5 {[%emt 0:00:47]} 5. O-O {[%emt 0:01:04]} e6 {[%emt 0:00:17]} 6. c4 {[%emt 0:07:04]} Bd6 {[%emt 0:04:07]} 7. b3 {[%emt 0:01:22]} h6 {[%emt 0:01:08]} 8. Bb2 {[%emt 0:00:17]} Nbd7 {[%emt 0:02:43]} 9. Nbd2 {[%emt 0:02:00]} Qc7 {[%emt 0:02:47] D11: Slav Defence: 3 Nf3 sidelines and 3...Nf6 4 e3 Bg4.} 10. Re1 {[%emt 0:13:32]} O-O {[%emt 0:05:29]} 11. Rc1 {[%emt 0:07:22]} Rfe8 {[%emt 0:04:53] The position is equal.} 12. a3 {[%emt 0:11:40] [#]} a5 $146 {[%emt 0:04:01]} ({Predecessor:} 12... Rac8 13. b4 Qb8 14. Nh4 Bh7 15. e4 dxe4 16. Nxe4 Nxe4 17. Bxe4 Bxe4 18. Rxe4 {½-½ (29) Lindenmaier,R (2010)-Schlinkmeier,K (2160) Bayern 2002}) 13. Nb1 {[%emt 0:05:56]} Rac8 {[%emt 0:02:35]} 14. Nfd2 {[%emt 0:01:15]} Qb8 {[%emt 0:11:44]} 15. e4 {[%emt 0:11:28]} dxe4 {[%emt 0:02:50]} 16. Nc3 {[%emt 0:07:18]} e5 {[%emt 0:04:33]} 17. Ndxe4 {[%emt 0:05:23]} (17. Ncxe4 $11 exd4 18. c5) 17... exd4 $17 {[%emt 0:02:31]} 18. Nxf6+ {[%emt 0:00:26]} Nxf6 {[%emt 0:00:09]} 19. Qxd4 {[%emt 0:03:26]} Be5 {[%emt 0:05:42]} 20. Qb6 {[%emt 0:03:49]} Nd7 $1 {[%emt 0:10:45]} 21. Qe3 {[%emt 0:04:09]} Bf6 {[%emt 0:01:19]} 22. Qf3 {[%emt 0:00:39]} Be6 {[%emt 0:00:58]} (22... Bg6 $17 {aiming for ...Ne5.} 23. Bh3 Ne5 24. Rxe5 Bxe5 25. Bxc8 Qxc8) 23. Na4 {[%emt 0:03:04]} Bxb2 {[%emt 0:02:12]} 24. Nxb2 {[%emt 0:00:02]} Ne5 {[%emt 0:01:06]} (24... Qd6 $15 {stays ahead.}) 25. Qc3 $16 {[%emt 0:00:56][%csl LRa5,LRe5]} Bg4 {[%emt 0:02:35]} 26. Qxa5 {[%emt 0:00:29]} Qd6 {[%emt 0:02:21]} 27. Qc3 {[%emt 0:01:06] Inhibits Qd4.} Qf6 {[%emt 0:02:34]} 28. f4 {[%emt 0:02:21]} Nf3+ {[%emt 0:01:20]} 29. Bxf3 {[%emt 0:00:07]} Rxe1+ {[%emt 0:00:06]} 30. Qxe1 {[%emt 0:00:06]} Bxf3 {[%emt 0:00:05]} 31. Qc3 {[%emt 0:00:19]} Rd8 {[%emt 0:02:53][%cal Of6d6]} 32. Qxf6 {[%emt 0:00:19]} gxf6 {[%emt 0:00:03][%mdl 4096] Endgame KRB-KRN} 33. Rc2 {[%emt 0:00:16] Against Rd2} b5 {[%emt 0:07:05]} (33... Be4 $16 34. Re2 Bf5) 34. Kf2 $18 {[%emt 0:04:25]} Be4 {[%emt 0:00:56]} 35. Re2 {[%emt 0:00:15]} f5 {[%emt 0:00:56]} (35... Bf5 $16) 36. Ke3 {[%emt 0:01:09]} (36. Ke1 $18) 36... bxc4 $14 {[%emt 0:00:46]} 37. bxc4 {[%emt 0:00:33]} c5 {[%emt 0:01:59]} 38. Rd2 {[%emt 0:03:34]} Rb8 {[%emt 0:00:02]} 39. Na4 {[%emt 0:00:56]} Rb3+ {[%emt 0:01:01] [#]} 40. Ke2 {[%emt 0:00:00]} (40. Kf2 $1 $16) 40... Rxa3 {[%emt 0:00:00]} 41. Nxc5 {[%emt 0:00:46]} Ra5 $2 {[%emt 0:11:23][%mdl 8192]} (41... Bf3+ $1 $14 42. Kf2 Rc3) 42. Nxe4 $18 {[%emt 0:16:55]} fxe4 {[%emt 0:00:07] KR-KR} 43. Ke3 {[%emt 0:00:07]} Rc5 {[%emt 0:02:39]} 44. Rc2 f5 {[%emt 0:00:07]} (44... Kf8 $142 45. Kxe4 Ke8) 45. g4 {[%emt 0:06:46]} fxg4 {[%emt 0:00:37]} 46. Kxe4 $2 {[%emt 0:00:08]} (46. Kd4 $18 {is the precise move to win.} Rc6 47. Kd5) 46... Kf7 {[%emt 0:01:20]} 47. Kd4 {[%emt 0:01:12]} Rc8 {[%emt 0:02:22]} 48. Ke5 {[%emt 0:02:01] c5 is the strong threat.} h5 {[%emt 0:02:15][%cal Bh6h5,Bh5h4,Bh4g3][%mdl 32]} 49. c5 {[%emt 0:00:40] Black must now prevent c6.} h4 {[%emt 0:00:33]} 50. c6 {[%emt 0:01:15]} g3 {[%emt 0:00:54] [#]} 51. hxg3 {[%emt 0:00:44]} (51. h3 $1 $16) 51... hxg3 $11 {[%emt 0:00:03]} 52. Kd6 {[%emt 0:00:08] White threatens c7 and mate.} Kf6 {[%emt 0:01:28]} 53. Rg2 $1 {[%emt 0:00:47] Intending Kd7 and mate.} Rg8 $2 {[%emt 0:02:31][%mdl 8192] White stays focused until the end.} (53... Rd8+ $11 54. Kc5 Rd3) 54. c7 {[%emt 0:00:12]} Kf5 {[%emt 0:00:07] [#]} 55. Rxg3 $3 {[%emt 0:00:12][%mdl 512]} Rxg3 {[%emt 0:00:11]} 56. c8=Q+ {[%emt 0:00:07]} Kxf4 {[%emt 0:00:09] KQ-KR} 57. Qc2 {[%emt 0:00:51]} Rg5 {[%emt 0:02:06]} 58. Ke6 {[%emt 0:00:22]} Re5+ {[%emt 0:02:43]} 59. Kf6 {[%emt 0:00:12]} Re3 {[%emt 0:00:24]} 60. Qf5+ {[%emt 0:00:16]} Kg3 {[%emt 0:00:09]} 61. Qg5+ {[%emt 0:00:42]} Kf3 {[%emt 0:00:07]} 62. Kf5 {[%emt 0:00:05]} Rd3 {[%emt 0:01:46]} 63. Qf4+ {[%emt 0:00:32]} Ke2 {[%emt 0:00:19]} 64. Ke4 {[%emt 0:00:10]} Rd2 {[%emt 0:01:15]} 65. Qf3+ {[%emt 0:00:42]} Ke1 {[%emt 0:00:07]} 66. Qc3 {[%emt 0:01:17]} Kd1 {[%emt 0:00:45]} 67. Kf3 {[%emt 0:00:36]} Rf2+ {[%emt 0:00:08]} 68. Kg3 {[%emt 0:03:26]} Rd2 {[%emt 0:00:24]} 69. Qb3+ {[%emt 0:00:04]} Ke2 {[%emt 0:01:21]} 70. Qf3+ {[%emt 0:00:49]} Ke1 {[%emt 0:00:01]} 71. Qh1+ {[%emt 0:00:07]} Ke2 {[%emt 0:00:03]} 72. Qg1 {[%emt 0:00:10]} Kd3 {[%emt 0:00:06]} 73. Kf3 {[%emt 0:00:05]} Kc2 {[%emt 0:01:32]} 74. Qf1 {[%emt 0:00:29]} Rd3+ {[%emt 0:01:09]} 75. Ke2 {[%emt 0:00:06]} (75. Ke4 $142 Rb3 76. Qc4+ Rc3 77. Qe2+ Kb3 78. Kd4 Rg3 79. Qb5+ Ka3 80. Qe5) 75... Rc3 {[%emt 0:01:33]} 76. Qf7 {[%emt 0:00:34] White mates.} Kb1 {[%emt 0:01:17]} 77. Kd2 {[%emt 0:00:23]} Rc2+ {[%emt 0:00:37]} 78. Kd3 {[%emt 0:00:06]} Rb2 {[%emt 0:01:03]} 79. Qc4 {[%emt 0:00:19]} Ka1 {[%emt 0:01:15]} 80. Qa4+ {[%emt 0:00:22]} Ra2 {[%emt 0:00:46]} 81. Qd1+ {[%emt 0:00:28]} Kb2 {[%emt 0:00:01]} 82. Qd2+ {[%emt 0:00:30]} Ka3 {[%emt 0:01:21]} 83. Qc3+ {[%emt 0:00:26]} Ka4 {[%emt 0:00:08]} 84. Kc4 {[%emt 0:00:20] Weighted Error Value: White=0.26 (precise) /Black=0.43} 1-0